bitfinex/quotes_BTCUSD_20240921
["timestamp","ask_amount","ask_price","bid_price","bid_amount"]
[1726881196955,0.55247327,63106.0,63105.0,0.0010951]
[1726881197168,0.55447327,63106.0,63105.0,0.0010951]
[1726881198055,0.87140027,63106.0,63105.0,0.0010951]
[1726881198267,0.87140027,63106.0,63105.0,0.0019211]
[1726881198478,0.86940027,63106.0,63105.0,0.0019211]
[1726881198691,0.55247327,63106.0,63105.0,0.0019211]
[1726881198904,0.55647327,63106.0,63105.0,0.0019211]
[1726881199128,0.89215899,63106.0,63105.0,0.0019211]
[1726881199381,0.57123199,63106.0,63105.0,0.0019211]
[1726881199594,0.59806558,63106.0,63105.0,0.0019211]
[1726881200004,0.91933658,63106.0,63105.0,0.0019211]
[1726881200442,0.92333658,63106.0,63105.0,0.0019211]
[1726881200898,1.24026358,63106.0,63105.0,0.0019211]
[1726881201171,1.11900082,63106.0,63105.0,0.0019211]
[1726881201384,0.92333658,63106.0,63105.0,0.0019211]
[1726881201804,0.91933658,63106.0,63105.0,0.0019211]
[1726881202018,0.92133658,63106.0,63105.0,0.0019211]
[1726881202457,0.91933658,63106.0,63105.0,0.0019211]
[1726881202855,1.24026358,63106.0,63105.0,0.0019211]
[1726881203540,1.23626358,63106.0,63105.0,0.0019211]
[1726881204885,1.24226358,63106.0,63105.0,0.0019211]
[1726881205342,1.23626358,63106.0,63105.0,0.0019211]
[1726881205860,1.24026358,63106.0,63105.0,0.0019211]
[1726881206069,1.23626358,63106.0,63105.0,0.0019211]
[1726881206972,1.24226358,63106.0,63105.0,0.0019211]
[1726881207471,1.43792782,63106.0,63105.0,0.0019211]
[1726881207714,1.55919058,63106.0,63105.0,0.0019211]
[1726881208485,1.11500082,63106.0,63105.0,0.0019211]
[1726881208725,1.23626358,63106.0,63105.0,0.0019211]
[1726881208953,1.24626358,63106.0,63105.0,0.0019211]
[1726881209185,0.33268382,63106.0,63105.0,0.0019211]
[1726881209625,0.33268382,63106.0,63105.0,0.03252581]
[1726881210069,0.32433582,63106.0,63105.0,0.03252581]
[1726881210292,0.44559858,63106.0,63105.0,0.0019211]
[1726881210500,0.44959858,63106.0,63105.0,0.0019211]
[1726881212271,0.44559858,63106.0,63105.0,0.0019211]
[1726881212482,0.44959858,63106.0,63105.0,0.0019211]
[1726881213293,0.44959858,63106.0,63105.0,0.01789581]
[1726881213504,0.44959858,63106.0,63105.0,0.0019211]
[1726881215243,0.60806158,63106.0,63105.0,0.0019211]
[1726881215457,1.24191558,63106.0,63105.0,0.0019211]
[1726881217250,1.12065282,63106.0,63105.0,0.0019211]
[1726881217478,1.55884258,63106.0,63105.0,0.0019211]
[1726881218416,1.55484258,63106.0,63105.0,0.0019211]
[1726881218644,1.24191558,63106.0,63105.0,0.0019211]
[1726881219353,0.80372582,63106.0,63105.0,0.0019211]
[1726881219606,0.92498858,63106.0,63105.0,0.0019211]
[1726881219837,1.24191558,63106.0,63105.0,0.0019211]
[1726881220307,1.33116894,63106.0,63105.0,0.0019211]
[1726881222770,0.1,63097.0,63086.0,0.1354711]
[1726881223050,0.575458,63097.0,63096.0,0.23751653]
[1726881223255,0.1,63092.0,63086.0,0.1354711]
[1726881223466,0.158497,63093.0,63086.0,0.1354711]
[1726881223467,0.22126276,63089.0,63086.0,0.1354711]
[1726881223901,0.85983443,63089.0,63086.0,0.0045711]
[1726881224113,0.915555,63087.0,63086.0,0.0016311]
[1726881224377,0.915555,63087.0,63062.0,0.02275732]
[1726881224379,0.256041,63063.0,63062.0,0.02275732]
[1726881224589,0.14092248,63081.0,63062.0,0.00688909]
[1726881224811,0.12126276,63078.0,63062.0,0.00688909]
[1726881225035,0.00275767,63083.0,63062.0,0.00688909]
[1726881225036,0.12126276,63075.0,63062.0,0.00688909]
[1726881225483,0.00275767,63083.0,63062.0,0.95281347]
[1726881225484,0.12126276,63068.0,63062.0,0.95281347]
[1726881225709,0.16305367,63067.0,63062.0,0.95281347]
[1726881225933,0.17308962,63067.0,63063.0,0.00317112]
[1726881226146,0.16305367,63067.0,63063.0,0.0005678]
[1726881226357,0.16305367,63067.0,63064.0,0.1516]
[1726881226358,0.1,63066.0,63064.0,0.1516]
[1726881226572,0.1,63066.0,63065.0,0.01576862]
[1726881226786,0.1,63066.0,63064.0,0.1516]
[1726881226787,0.26305367,63066.0,63064.0,0.1516]
[1726881227221,0.26305367,63066.0,63064.0,0.1521678]
[1726881230466,0.16305367,63065.0,63064.0,0.1521678]
[1726881232024,0.16405367,63065.0,63064.0,0.1521678]
[1726881232451,0.16405367,63065.0,63064.0,0.16748718]
[1726881232666,0.16405367,63065.0,63064.0,0.16831318]
[1726881233949,0.001,63065.0,63064.0,0.16831318]
[1726881234160,0.03,63066.0,63064.0,0.16831318]
[1726881234364,0.19305367,63066.0,63064.0,0.16831318]
[1726881234583,0.001,63065.0,63064.0,0.1529938]
[1726881234795,0.001,63065.0,63064.0,0.2774938]
[1726881235012,0.01091227,63065.0,63064.0,0.28066465]
[1726881235223,0.03,63066.0,63064.0,0.2774938]
[1726881235653,0.031,63066.0,63064.0,0.2774938]
[1726881235887,0.031,63066.0,63065.0,0.04671751]
[1726881237167,0.031,63066.0,63064.0,0.2774938]
[1726881237630,0.03,63066.0,63064.0,0.2774938]
[1726881237839,0.001,63065.0,63064.0,0.2834938]
[1726881238487,0.03,63066.0,63064.0,0.2774938]
[1726881238712,0.03,63066.0,63064.0,0.2824938]
[1726881238920,0.03,63066.0,63065.0,0.02835198]
[1726881240050,0.03,63066.0,63065.0,0.03152285]
[1726881241770,0.031,63066.0,63065.0,0.03935198]
[1726881241980,0.031,63066.0,63065.0,0.04252286]
[1726881243225,0.031,63066.0,63065.0,0.01417088]
[1726881243499,0.04981459,63066.0,63065.0,0.01417088]
[1726881244019,0.21286826,63066.0,63065.0,0.011]
[1726881244253,0.49835268,63066.0,63065.0,0.011]
[1726881244506,0.50828057,63066.0,63065.0,0.011]
[1726881244760,0.5569873,63066.0,63065.0,0.011]
[1726881245229,0.1,63065.0,63064.0,0.0013938]
[1726881245447,0.26305367,63065.0,63064.0,0.0013938]
[1726881245661,0.27298147,63065.0,63064.0,0.0013938]
[1726881246557,0.0099278,63065.0,63064.0,0.31454928]
[1726881246776,0.0099278,63065.0,63064.0,0.35812845]
[1726881246990,0.031654,63066.0,63064.0,0.35812845]
[1726881247215,0.031654,63066.0,63065.0,0.0031708]
[1726881247710,0.0470618,63085.0,63069.0,0.002]
[1726881247920,0.30842893,63086.0,63078.0,0.18548442]
[1726881247921,0.23784984,63086.0,63078.0,0.18548442]
[1726881248145,0.0470618,63096.0,63078.0,0.20423286]
[1726881248368,0.07057909,63097.0,63079.0,0.00316992]
[1726881248369,0.95119573,63086.0,63079.0,0.00316992]
[1726881248551,0.22650767,63095.0,63079.0,0.00316992]
[1726881248806,0.95119573,63090.0,63079.0,0.00316992]
[1726881248996,0.16305367,63089.0,63079.0,0.00316992]
[1726881249259,0.16305367,63089.0,63080.0,0.02094028]
[1726881249480,0.001,63086.0,63081.0,0.00317001]
[1726881250787,0.001,63086.0,63083.0,0.1535]
[1726881251000,0.001,63086.0,63084.0,0.00316994]
[1726881251216,0.001,63086.0,63084.0,0.13026994]
[1726881251432,0.1105405,63099.0,63085.0,0.04712544]
[1726881251655,0.1,63090.0,63086.0,0.00316974]
[1726881252092,1.1142494,63098.0,63086.0,0.00316974]
[1726881252310,1.1142494,63098.0,63086.0,0.18865416]
[1726881252530,1.1142494,63098.0,63090.0,0.18548442]
[1726881252800,1.1142494,63098.0,63091.0,0.00316954]
[1726881253303,1.1142494,63098.0,63086.0,0.00316954]
[1726881253521,0.16305367,63098.0,63087.0,0.95436527]
[1726881253759,0.95119573,63097.0,63084.0,0.1271]
[1726881254026,1.1142494,63097.0,63085.0,0.99780417]
[1726881254231,0.00995934,63096.0,63085.0,0.99780417]
[1726881254877,0.00995934,63096.0,63091.0,0.008]
[1726881255360,0.00995934,63096.0,63085.0,0.99780417]
[1726881255571,0.00995934,63096.0,63086.0,0.04088326]
[1726881255807,0.01195934,63096.0,63086.0,0.04088326]
[1726881256018,0.002,63096.0,63086.0,0.04088326]
[1726881256230,0.16305367,63097.0,63086.0,0.04088326]
[1726881256439,0.16305367,63097.0,63091.0,0.004]
[1726881256656,0.95119573,63096.0,63091.0,0.004]
[1726881256888,0.16305367,63097.0,63091.0,0.004]
[1726881257098,0.00949844,63095.0,63091.0,0.004]
[1726881257308,0.16305367,63097.0,63091.0,0.004]
[1726881257520,0.001654,63096.0,63091.0,0.004]
[1726881257732,0.16470767,63096.0,63086.0,0.04088326]
[1726881257981,0.16670767,63096.0,63087.0,0.04660844]
[1726881258416,0.1,63095.0,63087.0,0.04660844]
[1726881258633,0.16305367,63094.0,63083.0,0.1535]
[1726881258843,0.17263674,63094.0,63091.0,0.003]
[1726881259270,0.17263674,63094.0,63084.0,0.95119573]
[1726881259498,0.17263674,63094.0,63077.0,0.95119573]
[1726881259499,0.18548442,63089.0,63077.0,0.95119573]
[1726881259725,0.26305367,63088.0,63085.0,0.95119573]
[1726881259937,0.27262328,63088.0,63077.0,0.95119573]
[1726881260832,0.95119573,63087.0,63077.0,0.95119573]
[1726881261057,0.16305367,63086.0,63077.0,0.95119573]
[1726881261497,0.17262326,63086.0,63077.0,0.95119573]
[1726881262175,0.17262326,63086.0,63072.0,0.1652]
[1726881262383,0.17262326,63086.0,63077.0,0.002]
[1726881262623,0.17262326,63086.0,63078.0,0.01319]
[1726881263899,0.17262326,63086.0,63077.0,0.002]
[1726881264113,0.17262326,63086.0,63072.0,0.1652]
[1726881264331,0.1,63085.0,63072.0,0.1652]
[1726881264548,0.1,63083.0,63075.0,0.002]
[1726881264769,0.16305367,63082.0,63075.0,0.002]
[1726881264982,0.17259961,63082.0,63068.0,0.1299]
[1726881265412,0.17259961,63082.0,63077.0,0.002]
[1726881265630,0.95119573,63080.0,63077.0,0.002]
[1726881265843,0.16305367,63079.0,63068.0,0.1299]
[1726881266016,0.17259957,63079.0,63068.0,0.1299]
[1726881266222,0.16305367,63079.0,63068.0,0.1299]
[1726881266643,0.16305367,63079.0,63075.0,0.006]
[1726881267480,0.00954589,63078.0,63075.0,0.006]
[1726881267888,0.00954589,63078.0,63068.0,0.1299]
[1726881268093,0.00954589,63078.0,63070.0,0.23781967]
[1726881268308,0.003,63079.0,63072.0,0.002]
[1726881268522,0.003,63079.0,63073.0,0.04014225]
[1726881268728,0.0095388,63078.0,63073.0,0.03697197]
[1726881268932,0.1,63084.0,63073.0,0.03697197]
[1726881269141,0.1,63082.0,63074.0,0.02747916]
[1726881269353,0.26305367,63082.0,63074.0,0.02747916]
[1726881269560,0.00953914,63081.0,63074.0,0.02747916]
[1726881269977,0.001,63078.0,63074.0,0.02747916]
[1726881270388,0.00953909,63077.0,63074.0,0.02747916]
[1726881271627,0.26405367,63082.0,63074.0,0.03547916]
[1726881271834,0.00953907,63076.0,63074.0,0.03547916]
[1726881272042,0.26305367,63082.0,63074.0,0.02747916]
[1726881272250,0.00953906,63075.0,63074.0,0.02747916]
[1726881272455,0.00953906,63075.0,63074.0,0.03947916]
[1726881272661,0.001,63077.0,63074.0,0.03947916]
[1726881272873,0.26305367,63082.0,63074.0,0.02747916]
[1726881273089,0.00953908,63075.0,63074.0,0.04047916]
[1726881273304,0.001,63076.0,63075.0,0.00794511]
[1726881274352,0.23781967,63087.0,63075.0,0.00794511]
[1726881274771,0.001,63077.0,63075.0,0.00794511]
[1726881275177,0.26305367,63090.0,63075.0,0.00794511]
[1726881275388,0.95115803,63083.0,63076.0,0.02229087]
[1726881275586,0.006,63087.0,63075.0,0.00794511]
[1726881275795,0.00954451,63082.0,63075.0,0.00794511]
[1726881276017,0.95115803,63086.0,63075.0,0.00794511]
[1726881276153,0.00954449,63081.0,63075.0,0.00794511]
[1726881276383,0.95115803,63086.0,63075.0,0.00794511]
[1726881276585,0.00954441,63080.0,63075.0,0.00794511]
[1726881276816,0.95115803,63086.0,63075.0,0.00794511]
[1726881277014,0.00954441,63079.0,63075.0,0.00794511]
[1726881277228,0.95115803,63086.0,63075.0,0.00794511]
[1726881277443,0.00954455,63085.0,63075.0,0.00794511]
[1726881278686,0.16305367,63084.0,63075.0,0.00894511]
[1726881279098,0.17260938,63084.0,63075.0,0.00894511]
[1726881279306,0.17260938,63084.0,63075.0,0.00794511]
[1726881280360,0.17560938,63084.0,63075.0,0.00794511]
[1726881280778,0.001654,63082.0,63075.0,0.00794511]
[1726881280986,0.16470767,63082.0,63075.0,0.00794511]
[1726881281189,0.00954761,63081.0,63075.0,0.00794511]
[1726881282588,0.00954761,63081.0,63075.0,0.00894511]
[1726881283045,0.00954761,63081.0,63075.0,0.00794511]
[1726881283567,0.00954761,63081.0,63075.0,0.01394511]
[1726881283997,0.00954761,63081.0,63076.0,0.02792251]
[1726881285624,0.00954761,63081.0,63076.0,0.03392251]
[1726881285866,0.00954761,63081.0,63078.0,0.1316]
[1726881286105,0.00954761,63081.0,63079.0,0.00317008]
[1726881286384,0.001654,63082.0,63076.0,0.03392251]
[1726881286899,0.001654,63082.0,63072.0,0.23780082]
[1726881286900,0.00955173,63081.0,63072.0,0.23780082]
[1726881287151,0.00955173,63081.0,63078.0,0.006]
[1726881287337,0.001654,63082.0,63078.0,0.006]
[1726881287468,0.00955346,63080.0,63078.0,0.006]
[1726881287680,0.001654,63082.0,63078.0,0.006]
[1726881287883,0.00955346,63079.0,63078.0,0.006]
[1726881288086,0.001654,63082.0,63078.0,0.006]
[1726881288293,0.00955348,63079.0,63072.0,0.23780082]
[1726881288513,0.001654,63082.0,63076.0,0.005]
[1726881288725,0.00955346,63078.0,63076.0,0.005]
[1726881288929,0.001654,63082.0,63076.0,0.005]
[1726881289132,0.00955346,63077.0,63073.0,0.03914008]
[1726881289746,0.001,63079.0,63073.0,0.03714008]
[1726881289945,0.001654,63082.0,63071.0,0.1316]
[1726881290145,0.00955261,63078.0,63076.0,0.005]
[1726881290594,0.001654,63082.0,63076.0,0.005]
[1726881290946,0.00955257,63081.0,63076.0,0.005]
[1726881291570,0.00955257,63081.0,63071.0,0.1336]
[1726881291771,0.00955257,63081.0,63072.0,0.26970926]
[1726881292250,0.00955257,63081.0,63072.0,0.03190844]
[1726881292251,0.95122589,63080.0,63072.0,0.03190844]
[1726881292460,0.00955257,63081.0,63071.0,0.1316]
[1726881292721,0.05688764,63079.0,63071.0,0.1316]
[1726881292960,0.04733609,63080.0,63071.0,0.1376]
[1726881293174,0.00955166,63078.0,63072.0,0.01396]
[1726881293386,0.00955155,63079.0,63072.0,0.01396]
[1726881293617,0.00955165,63077.0,63072.0,0.02096]
[1726881293848,0.00955155,63078.0,63072.0,0.02096]
[1726881294073,0.04733609,63079.0,63073.0,0.015256]
[1726881294312,0.00955155,63077.0,63073.0,0.015256]
[1726881294521,0.04733609,63078.0,63073.0,0.015256]
[1726881294651,0.00955155,63076.0,63073.0,0.015256]
[1726881294863,0.04733609,63078.0,63074.0,0.0153856]
[1726881295087,0.00955155,63075.0,63074.0,0.0153856]
[1726881295314,0.04833609,63078.0,63074.0,0.0153856]
[1726881295540,0.00955154,63075.0,63074.0,0.0153856]
[1726881295751,0.04733609,63078.0,63074.0,0.0153856]
[1726881295957,0.001,63076.0,63075.0,0.01469856]
[1726881296554,0.04733609,63078.0,63075.0,0.01469856]
[1726881296961,0.04733609,63079.0,63075.0,0.01469856]
[1726881297992,0.04733609,63077.0,63075.0,0.01469856]
[1726881298414,0.001,63076.0,63075.0,0.02569856]
[1726881298838,0.04733609,63077.0,63075.0,0.01469856]
[1726881299050,0.04733609,63077.0,63075.0,0.02469856]
[1726881299256,0.04733609,63076.0,63075.0,0.02469856]
[1726881299701,0.04733609,63076.0,63075.0,0.01469856]
[1726881299918,0.04833609,63076.0,63075.0,0.02569856]
[1726881300354,0.01055154,63076.0,63075.0,0.02569856]
[1726881300574,0.01055154,63076.0,63075.0,0.011]
[1726881300807,0.05788763,63076.0,63075.0,0.011]
[1726881301319,0.08159814,63076.0,63075.0,0.011]
[1726881301563,0.39968767,63076.0,63075.0,0.011]
[1726881302563,0.39868767,63076.0,63066.0,0.000827]
[1726881302780,0.0473711,63069.0,63067.0,0.04054902]
[1726881302986,0.07105665,63071.0,63067.0,0.04054902]
[1726881302987,0.0473711,63071.0,63067.0,0.04054902]
[1726881303219,0.00952021,63068.0,63067.0,0.34963344]
[1726881303433,0.0473711,63075.0,63069.0,0.002]
[1726881303674,0.0473711,63076.0,63069.0,0.002]
[1726881303873,0.003,63076.0,63069.0,0.002]
[1726881304082,0.003,63076.0,63068.0,0.04694268]
[1726881304293,0.0503711,63076.0,63069.0,0.03596801]
[1726881304714,0.0503711,63076.0,63070.0,0.002]
[1726881304923,0.0503711,63076.0,63069.0,0.03596801]
[1726881305344,0.0473711,63076.0,63071.0,0.002]
[1726881305550,0.0473711,63076.0,63072.0,0.00317048]
[1726881306485,0.0473711,63076.0,63070.0,0.00317047]
[1726881306699,0.0473711,63076.0,63071.0,0.03570499]
[1726881306913,0.0503711,63076.0,63072.0,0.00317047]
[1726881307795,0.0503711,63076.0,63071.0,0.03570499]
[1726881308144,0.0473711,63076.0,63071.0,0.03570499]
[1726881308370,0.0483711,63076.0,63071.0,0.03570499]
[1726881308585,0.0483711,63076.0,63072.0,0.0171305]
[1726881308794,0.0473711,63076.0,63073.0,0.00317048]
[1726881309215,0.0483711,63076.0,63073.0,0.00317048]
[1726881309626,0.0473711,63076.0,63073.0,0.00317048]
[1726881310045,0.0483711,63076.0,63073.0,0.01317048]
[1726881310445,0.04838003,63076.0,63073.0,0.01317048]
[1726881310655,0.04838003,63076.0,63073.0,0.01]
[1726881312397,0.04738003,63075.0,63073.0,0.01]
[1726881313058,0.04838003,63076.0,63073.0,0.01]
[1726881313288,0.04738003,63076.0,63072.0,0.0171305]
[1726881314826,0.001,63075.0,63073.0,0.011]
[1726881315280,0.04738003,63076.0,63072.0,0.0171305]
[1726881315486,0.00952524,63074.0,63072.0,0.0171305]
[1726881315692,0.00952524,63074.0,63072.0,0.0271305]
[1726881315898,0.04838003,63076.0,63072.0,0.0271305]
[1726881316115,0.00952523,63073.0,63072.0,0.0271305]
[1726881316322,0.04738003,63076.0,63072.0,0.0171305]
[1726881316523,0.00952523,63073.0,63072.0,0.0171305]
[1726881316727,0.04738003,63076.0,63072.0,0.0171305]
[1726881316945,0.00952523,63073.0,63072.0,0.1409305]
[1726881317174,0.11845008,63080.0,63072.0,0.1409305]
[1726881317175,0.04738003,63078.0,63077.0,0.002]
[1726881317405,0.001654,63082.0,63078.0,0.30928442]
[1726881317616,0.001654,63082.0,63080.0,0.002]
[1726881318040,0.001654,63082.0,63079.0,0.002]
[1726881318455,0.001654,63082.0,63078.0,0.46128442]
[1726881318883,0.002654,63081.0,63080.0,0.009]
[1726881319139,0.002654,63081.0,63080.0,0.05622844]
[1726881319353,0.001654,63081.0,63080.0,0.04722844]
[1726881319781,0.004654,63081.0,63080.0,0.04722844]
[1726881319993,0.004654,63081.0,63080.0,0.04922844]
[1726881320872,0.001654,63081.0,63080.0,0.05239835]
[1726881321088,0.001654,63081.0,63080.0,0.19719835]
[1726881321309,0.001654,63081.0,63080.0,0.21019835]
[1726881321990,0.001654,63081.0,63080.0,0.37008211]
[1726881322205,0.001654,63081.0,63080.0,0.41559342]
[1726881322426,0.001654,63081.0,63080.0,0.37008211]
[1726881322635,0.001654,63081.0,63080.0,0.42825992]
[1726881322847,0.001654,63081.0,63080.0,0.42825981]
[1726881323093,0.001654,63081.0,63080.0,0.42825963]
[1726881323510,0.001654,63081.0,63080.0,0.35708211]
[1726881324584,0.003654,63081.0,63080.0,0.35708211]
[1726881324989,0.001654,63081.0,63080.0,0.35708211]
[1726881325702,0.001654,63081.0,63080.0,0.36208211]
[1726881327220,0.001654,63081.0,63080.0,0.19902844]
[1726881327861,0.001654,63081.0,63080.0,0.19402844]
[1726881328718,0.001654,63081.0,63080.0,0.19902844]
[1726881330242,0.001654,63081.0,63080.0,0.19402844]
[1726881333084,0.001654,63081.0,63080.0,0.19202844]
[1726881333293,0.001654,63081.0,63080.0,0.19402844]
[1726881334579,0.001654,63081.0,63080.0,0.19719814]
[1726881336014,0.001654,63081.0,63080.0,0.36025181]
[1726881336213,0.001654,63081.0,63080.0,0.35708211]
[1726881338472,0.001654,63081.0,63080.0,0.45708211]
[1726881339657,0.001654,63081.0,63080.0,0.46208211]
[1726881340020,0.001654,63081.0,63080.0,0.45708211]
[1726881340465,0.001654,63081.0,63080.0,0.45908211]
[1726881341133,0.001654,63081.0,63080.0,0.45708211]
[1726881341593,0.001654,63081.0,63080.0,0.45808211]
[1726881341800,0.00116647,63081.0,63080.0,0.45808211]
[1726881344255,0.001654,63082.0,63081.0,0.125]
[1726881344450,0.001654,63082.0,63081.0,0.44255586]
[1726881344691,0.001654,63082.0,63081.0,0.43938643]
[1726881344970,0.23781401,63091.0,63090.0,0.33868442]
[1726881345173,0.23781401,63091.0,63090.0,0.50173809]
[1726881345348,0.001654,63096.0,63095.0,0.025]
[1726881345556,0.001654,63096.0,63095.0,0.20848442]
[1726881347508,0.001654,63096.0,63095.0,0.22148442]
[1726881347714,0.001654,63096.0,63095.0,0.21948442]
[1726881348332,0.001654,63096.0,63095.0,0.22148442]
[1726881348540,0.001654,63096.0,63095.0,0.26871286]
[1726881348746,0.001654,63096.0,63095.0,0.26671286]
[1726881348951,0.001654,63096.0,63095.0,0.25571286]
[1726881349166,0.001654,63096.0,63095.0,0.25771286]
[1726881349583,0.001654,63096.0,63095.0,0.23271286]
[1726881349845,0.135254,63096.0,63095.0,0.04722844]
[1726881350028,0.001654,63096.0,63091.0,0.18548442]
[1726881350236,0.001654,63096.0,63093.0,0.002]
[1726881350442,0.001654,63096.0,63095.0,0.18548442]
[1726881352531,0.003654,63096.0,63095.0,0.18548442]
[1726881352736,0.003654,63096.0,63095.0,0.2045498]
[1726881353892,0.003654,63096.0,63095.0,0.01906538]
[1726881354304,0.003654,63096.0,63087.0,0.18548442]
[1726881354505,0.003654,63096.0,63089.0,0.23781401]
[1726881354758,0.003654,63096.0,63087.0,0.18548442]
[1726881355342,0.001654,63096.0,63087.0,0.18548442]
[1726881355544,0.001654,63096.0,63087.0,0.003]
[1726881355742,0.001654,63096.0,63088.0,0.02884844]
[1726881357923,0.1279,63095.0,63088.0,0.02884844]
[1726881358126,0.1279,63095.0,63087.0,0.003]
[1726881358341,0.1279,63095.0,63088.0,0.95098467]
[1726881358738,0.1279,63095.0,63088.0,0.95498467]
[1726881358949,0.1279,63095.0,63088.0,0.004]
[1726881359359,0.1279,63095.0,63083.0,0.18548442]
[1726881359897,0.1279,63095.0,63088.0,0.005]
[1726881360443,0.01780959,63094.0,63088.0,0.005]
[1726881361493,0.01780959,63094.0,63083.0,0.18548442]
[1726881361715,0.01780959,63094.0,63083.0,0.19548442]
[1726881362209,0.01780959,63094.0,63083.0,0.18548442]
[1726881362730,0.01780959,63094.0,63088.0,0.18548442]
[1726881363250,0.01780959,63094.0,63092.0,0.18548442]
[1726881363516,0.01780959,63094.0,63093.0,0.00316931]
[1726881363808,0.01780959,63094.0,63092.0,0.18548442]
[1726881363809,0.001654,63096.0,63092.0,0.18548442]
[1726881365626,0.001654,63096.0,63092.0,0.19148442]
[1726881365834,0.001654,63096.0,63093.0,0.01914844]
[1726881366441,0.002654,63096.0,63093.0,0.01914844]
[1726881367348,0.01773784,63095.0,63093.0,0.01914844]
[1726881369588,0.01973784,63095.0,63093.0,0.01914844]
[1726881374163,0.01973784,63095.0,63094.0,0.12158569]
[1726881374377,0.01973784,63095.0,63094.0,0.01407341]
[1726881374593,0.01973784,63095.0,63086.0,0.28514623]
[1726881374594,0.01973784,63095.0,63087.0,0.23774051]
[1726881374807,0.002,63095.0,63088.0,0.23774051]
[1726881375022,0.01776653,63094.0,63088.0,0.23774051]
[1726881375283,0.01776653,63094.0,63088.0,0.02377405]
[1726881375716,0.11,63093.0,63088.0,0.02377405]
[1726881376141,0.01776648,63092.0,63084.0,0.12158569]
[1726881376275,0.01776648,63092.0,63088.0,0.002]
[1726881376889,0.01776648,63092.0,63084.0,0.12158569]
[1726881377585,0.01776648,63092.0,63088.0,0.12158569]
[1726881377978,0.01776648,63092.0,63084.0,0.18531587]
[1726881378693,0.01776648,63092.0,63088.0,0.003]
[1726881378907,0.95099974,63091.0,63088.0,0.003]
[1726881379149,0.01776648,63092.0,63082.0,0.000825]
[1726881379377,0.01767637,63090.0,63082.0,0.000825]
[1726881379581,0.001,63092.0,63084.0,0.008]
[1726881379707,0.01767635,63089.0,63084.0,0.008]
[1726881379909,0.11,63093.0,63082.0,0.000825]
[1726881380163,0.01767642,63092.0,63082.0,0.000825]
[1726881380339,0.01867642,63092.0,63082.0,0.010825]
[1726881381612,0.01767642,63092.0,63082.0,0.000825]
[1726881382090,0.01767642,63092.0,63082.0,0.009825]
[1726881382091,0.95099974,63091.0,63082.0,0.009825]
[1726881382288,0.11,63091.0,63082.0,0.009825]
[1726881382491,0.01767704,63090.0,63082.0,0.000825]
[1726881382985,0.01767704,63090.0,63082.0,0.010825]
[1726881383393,0.01767704,63090.0,63082.0,0.000825]
[1726881384908,0.01967704,63090.0,63082.0,0.000825]
[1726881388589,0.16305367,63089.0,63082.0,0.000825]
[1726881388778,0.17769202,63089.0,63082.0,0.000825]
[1726881389775,0.17869202,63089.0,63082.0,0.000825]
[1726881390669,0.19728278,63089.0,63082.0,0.000825]
[1726881390875,0.114,63088.0,63082.0,0.000825]
[1726881391079,0.16305367,63087.0,63082.0,0.000825]
[1726881391283,0.17769198,63087.0,63082.0,0.000825]
[1726881391841,0.17769198,63087.0,63082.0,0.001825]
[1726881392401,0.17769198,63087.0,63082.0,0.000825]
[1726881392809,0.1,63086.0,63082.0,0.005825]
[1726881393061,0.16305367,63085.0,63082.0,0.005825]
[1726881393593,0.01460299,63084.0,63082.0,0.005825]
[1726881393796,0.16305367,63083.0,63082.0,0.005825]
[1726881393908,0.17765663,63083.0,63082.0,0.005825]
[1726881394951,0.17765663,63083.0,63082.0,0.000825]
[1726881395363,0.17765663,63083.0,63082.0,0.006825]
[1726881395364,0.28385663,63083.0,63082.0,0.006825]
[1726881395828,0.28385663,63083.0,63082.0,0.000825]
[1726881396235,0.28485663,63083.0,63082.0,0.009825]
[1726881398174,0.38485663,63083.0,63082.0,0.009825]
[1726881398359,0.52285663,63083.0,63082.0,0.009825]
[1726881399067,0.52285663,63083.0,63082.0,0.000825]
[1726881399068,0.52185663,63083.0,63082.0,0.000825]
[1726881399276,0.54669722,63083.0,63082.0,0.000825]
[1726881399495,0.54669722,63083.0,63082.0,0.003825]
[1726881400400,0.70521822,63083.0,63082.0,0.000825]
[1726881400662,0.75252423,63083.0,63082.0,0.000825]
[1726881400851,0.70521822,63083.0,63082.0,0.000825]
[1726881401040,1.02226022,63083.0,63082.0,0.000825]
[1726881401255,1.38654476,63083.0,63082.0,0.000825]
[1726881401460,1.02226022,63083.0,63082.0,0.000825]
[1726881401665,1.02226022,63083.0,63082.0,0.003825]
[1726881402088,1.20776509,63083.0,63082.0,0.003825]
[1726881402294,1.25499901,63083.0,63082.0,0.003825]
[1726881402673,1.25499901,63083.0,63082.0,0.000825]
[1726881403505,1.57204101,63083.0,63082.0,0.000825]
[1726881403712,1.25499901,63083.0,63082.0,0.000825]
[1726881403924,1.2787241,63083.0,63082.0,0.000825]
[1726881404138,1.52680709,63083.0,63082.0,0.000825]
[1726881404341,1.64507211,63083.0,63082.0,0.000825]
[1726881404522,1.62122827,63083.0,63082.0,0.000825]
[1726881404946,1.62222827,63083.0,63082.0,0.000825]
[1726881405109,0.82762327,63083.0,63082.0,0.000825]
[1726881405381,1.20876509,63083.0,63082.0,0.000825]
[1726881405584,0.93793941,63083.0,63082.0,0.000825]
[1726881405704,1.20776509,63083.0,63082.0,0.000825]
[1726881405911,1.20976509,63083.0,63082.0,0.000825]
[1726881406560,0.93794166,63083.0,63082.0,0.000825]
[1726881406780,0.54669722,63083.0,63082.0,0.000825]
[1726881408173,0.70521822,63083.0,63082.0,0.000825]
[1726881408389,0.70821822,63083.0,63082.0,0.000825]
[1726881408619,1.02526022,63083.0,63082.0,0.000825]
[1726881408862,1.02226022,63083.0,63082.0,0.000825]
[1726881409108,1.06947879,63083.0,63082.0,0.000825]
[1726881409358,1.07147879,63083.0,63082.0,0.000825]
[1726881409846,1.06947879,63083.0,63082.0,0.000825]
[1726881410282,1.07247879,63083.0,63082.0,0.000825]
[1726881410530,1.38952079,63083.0,63082.0,0.000825]
[1726881411539,1.38652079,63083.0,63082.0,0.000825]
[1726881411791,1.39052079,63083.0,63082.0,0.000825]
[1726881413266,1.07347879,63083.0,63082.0,0.000825]
[1726881415036,0.258561,63067.0,63066.0,0.000827]
[1726881415277,0.53456587,63067.0,63066.0,0.000827]
[1726881415523,1.18391895,63067.0,63066.0,0.000827]
[1726881415832,1.18391895,63067.0,63061.0,0.0002]